fUSD/lending_fUSD_20260523
["ID","MTS","AMOUNT","RATE_DAILY","PERIOD"]
[422854758,1779526245000,-500.0,0.00014999,2]
[422854744,1779526245000,-269.76420568,0.00014999,2]
[422854756,1779526245000,-500.0,0.00014999,2]
[422854746,1779526245000,-500.0,0.00014999,2]
[422854760,1779526245000,-500.0,0.00014999,2]
[422854762,1779526245000,-500.0,0.00014999,2]
[422854764,1779526245000,-500.0,0.00014999,2]
[422854766,1779526245000,-500.0,0.00014999,2]
[422854776,1779526245000,-317.58631988,0.00015,2]
[422854768,1779526245000,-510.38705025,0.00014999,2]
[422854770,1779526245000,-350.0,0.00015,2]
[422854772,1779526245000,-40002.70134248,0.00015,2]
[422854774,1779526245000,-1212.8793534,0.00015,2]
[422854683,1779526245000,-251.37092639,0.00014986,2]
[422854736,1779526245000,-298.14526136,0.00014999,2]
[422854728,1779526245000,-293.11665603,0.00014999,2]
[422854734,1779526245000,-500.0,0.00014999,2]
[422854697,1779526245000,-150.0,0.00014986,2]
[422854691,1779526245000,-150.0,0.00014986,2]
[422854705,1779526245000,-421.22053859,0.0001499,2]
[422854693,1779526245000,-199.11874836,0.00014986,2]
[422854707,1779526245000,-3626.45546208,0.0001499,2]
[422854709,1779526245000,-652.08200092,0.0001499,2]
[422854695,1779526245000,-263.26296792,0.00014986,2]
[422854701,1779526245000,-172.78309106,0.00014986,2]
[422854730,1779526245000,-74.84665179,0.00014999,2]
[422854699,1779526245000,-150.0,0.00014986,2]
[422854703,1779526245000,-421.22053859,0.0001499,2]
[422854712,1779526245000,-311.98467859,0.0001499,2]
[422854714,1779526245000,-524.9326699,0.0001499,2]
[422854716,1779526245000,-684.54518851,0.0001499,2]
[422854718,1779526245000,-500.0,0.00014994,2]
[422854720,1779526245000,-151.0,0.00014997,2]
[422854722,1779526245000,-151.0,0.00014997,2]
[422854726,1779526245000,-500.0,0.00014998,2]
[422854724,1779526245000,-500.0,0.00014998,2]
[422854732,1779526245000,-5725.15334821,0.00014999,2]
[422854689,1779526245000,-150.64808401,0.00014986,2]
[422854840,1779526246000,-2116.08895228,0.00015,2]
[422854934,1779526246000,-2304.0,0.00015,2]
[422854835,1779526246000,-730.12479506,0.00012666,2]
[422854931,1779526246000,-370.45,0.00015,2]
[422854837,1779526246000,-5329.87520494,0.00012666,2]
[422854943,1779526246000,-1668.73,0.00015,2]
[422854952,1779526246000,-14950.81141236,0.00015,2]
[422854941,1779526246000,-707.16647587,0.00015,2]
[422854946,1779526246000,-15827.75454442,0.00015,2]
[422854948,1779526246000,-822.41952396,0.00015,2]
[422854961,1779526247000,-1166.98562294,0.00015,2]
[422855274,1779526255000,152.0,9.419e-05,7]
[422855275,1779526379000,150.0,8e-05,2]
[422855276,1779526409000,150.0,8e-05,2]
[422855277,1779526451000,169.26483156,0.00028082,120]
[422855278,1779526549000,400.0,8.8e-05,3]
[422855279,1779526551000,800.0,8.9e-05,3]
[422855280,1779526553000,1200.0,9e-05,3]
[422855281,1779526562000,151.93,6.154e-05,2]
[422855283,1779526562000,151.93,7.522e-05,2]
[422855282,1779526562000,151.93,6.838e-05,2]
[422855284,1779526592000,-500.0,8.161e-05,2]
[422855285,1779526646000,-250.0,8.183e-05,2]
[422855286,1779526699000,-151.93,8.205e-05,2]
[422855287,1779526753000,-250.0,8.626e-05,2]
[422855289,1779526806000,150.0,0.00017795,120]
[422855288,1779526806000,-151.93,8.889e-05,2]
[422855290,1779526807000,213.34905562,0.00017795,120]
[422855292,1779526859000,200.0,8.8e-05,3]
[422855291,1779526859000,-209.04079427,8.939e-05,2]
[422855294,1779526860000,700.0,9e-05,3]
[422855293,1779526860000,500.0,8.9e-05,3]
[422855296,1779526913000,-300.0,8.938e-05,2]
[422855297,1779526966000,-1200.0,8.939e-05,2]
[422855299,1779527020000,-300.0,8.938e-05,2]
[422855300,1779527073000,-1350.37,8.761e-05,2]
[422855301,1779527234000,800.0,8.8e-05,3]
[422855302,1779527236000,1600.0,8.9e-05,3]
[422855303,1779527238000,2500.0,9e-05,3]
[422855304,1779527273000,1000.0,8.8e-05,3]
[422855305,1779527275000,2000.0,8.9e-05,3]
[422855306,1779527277000,3000.0,9e-05,3]
[422855307,1779527340000,1000.0,0.00028081,120]
[422855309,1779527430000,-150.0,8.938e-05,2]
[422855310,1779527430000,166.78,5.614e-05,2]
[422855334,1779527431000,-379.22237515,8.939e-05,2]
[422855336,1779527431000,-500.0,8.939e-05,2]
[422855325,1779527431000,-500.0,8.939e-05,2]
[422855326,1779527431000,-372.70273187,8.939e-05,2]
[422855321,1779527431000,-6881.01749096,8.939e-05,2]
[422855323,1779527431000,-500.0,8.939e-05,2]
[422855322,1779527431000,-500.0,8.939e-05,2]
[422855316,1779527431000,-298.715,8.938e-05,2]
[422855315,1779527431000,-394.31999997,8.938e-05,2]
[422855317,1779527431000,-234.85049379,8.938e-05,2]
[422855318,1779527431000,-69.54450621,8.939e-05,2]
[422855319,1779527431000,-180.45549379,8.939e-05,2]
[422855313,1779527431000,-300.0,8.938e-05,2]
[422855324,1779527431000,-500.0,8.939e-05,2]
[422855314,1779527431000,-272.11450624,8.938e-05,2]
[422855320,1779527431000,-121.26612084,8.939e-05,2]
[422855335,1779527431000,-500.0,8.939e-05,2]
[422855329,1779527431000,-500.0,8.939e-05,2]
[422855331,1779527431000,-500.0,8.939e-05,2]
[422855330,1779527431000,-500.0,8.939e-05,2]
[422855347,1779527431000,-857.03856977,8.94e-05,2]
[422855345,1779527431000,-95048.70348072,8.94e-05,2]
[422855346,1779527431000,-1254.41808677,8.94e-05,2]
[422855342,1779527431000,-452984.25489571,8.94e-05,2]
[422855344,1779527431000,-21471.96598307,8.94e-05,2]
[422855343,1779527431000,-33561.57511167,8.94e-05,2]
[422855341,1779527431000,-56004.00704285,8.94e-05,2]
[422855340,1779527431000,-245.14907982,8.939e-05,2]
[422855338,1779527431000,-500.0,8.939e-05,2]
[422855337,1779527431000,-399.12124297,8.939e-05,2]
[422855328,1779527431000,-500.0,8.939e-05,2]
[422855327,1779527431000,-500.0,8.939e-05,2]
[422855333,1779527431000,-566.4613242,8.939e-05,2]
[422855332,1779527431000,-500.0,8.939e-05,2]
[422855339,1779527431000,-249.4261689,8.939e-05,2]
[422855403,1779527437000,-192879.89403379,8.94e-05,2]
[422855407,1779527437000,-10391.57037895,8.94e-05,2]
[422855404,1779527437000,-713.71647197,8.94e-05,2]
[422855406,1779527437000,-1800.69231806,8.94e-05,2]
[422855408,1779527437000,-1170.75638054,8.94e-05,2]
[422855409,1779527437000,-1322.80988753,8.94e-05,2]
[422855405,1779527437000,-548.48258467,8.94e-05,2]
[422855445,1779527440000,-380.30947352,8.94e-05,2]
[422855446,1779527440000,-1419.35792586,8.94e-05,2]
[422855444,1779527440000,-268.27883374,8.94e-05,2]
[422855442,1779527440000,-595.85768052,8.94e-05,2]
[422855443,1779527440000,-41730.120869,8.94e-05,2]
[422855441,1779527440000,-2874.02810723,8.94e-05,2]
[422855453,1779527445000,-250.0,8.951e-05,2]
[422855459,1779527445000,-151.93,9.573e-05,2]
[422855452,1779527445000,-885742.78303987,8.94e-05,2]
[422855457,1779527445000,-9715.97,9.136e-05,2]
[422855456,1779527445000,-129494.56,9.136e-05,2]
[422855454,1779527445000,-1000.0,8.999e-05,2]
[422855461,1779527445000,-250.0,9.832e-05,2]
[422855460,1779527445000,-202.96437087,9.68e-05,2]
[422855455,1779527445000,-723.73,9.136e-05,2]
[422855450,1779527445000,-634.56139995,8.94e-05,2]
[422855449,1779527445000,-3734.46024787,8.94e-05,2]
[422855462,1779527445000,-255.0,9.832e-05,2]
[422855458,1779527445000,-166.19,9.411e-05,2]
[422855464,1779527445000,-1680.0,9.832e-05,2]
[422855451,1779527445000,-632.84589637,8.94e-05,2]
[422855463,1779527445000,-420.0,9.832e-05,2]
[422855465,1779527445000,-326.53352214,0.0001,2]
[422855478,1779527445000,-1483.55420824,0.000109,2]
[422855477,1779527445000,-500.0,0.000109,2]
[422855471,1779527445000,-166.19,0.00010187,2]
[422855475,1779527445000,-587.0,0.00010815,2]
[422855467,1779527445000,-1633.0,0.00010007,2]
[422855476,1779527445000,-2351.0,0.00010815,2]
[422855474,1779527445000,-345.0,0.00010815,2]
[422855469,1779527445000,-1013.0,0.00010064,2]
[422855468,1779527445000,-608.0,0.00010043,2]
[422855470,1779527445000,-3257.0,0.00010084,2]
[422855473,1779527445000,-1883.81862933,0.00010405,2]
[422855472,1779527445000,-151.93,0.00010257,2]
[422855466,1779527445000,-167.62259214,0.0001,2]
[422855520,1779527446000,-982.0,0.00011781,2]
[422855512,1779527446000,-982.0,0.00011781,2]
[422855525,1779527446000,-1000.2153574,0.00011781,2]
[422855524,1779527446000,-982.0,0.00011781,2]
[422855523,1779527446000,-982.0,0.00011781,2]
[422855507,1779527446000,-982.0,0.00011781,2]
[422855505,1779527446000,-982.0,0.00011781,2]
[422855508,1779527446000,-982.0,0.00011781,2]
[422855514,1779527446000,-982.0,0.00011781,2]
[422855502,1779527446000,-982.0,0.00011781,2]
[422855513,1779527446000,-982.0,0.00011781,2]
[422855518,1779527446000,-982.0,0.00011781,2]
[422855528,1779527446000,-200.0,0.00011781,2]
[422855519,1779527446000,-982.0,0.00011781,2]
[422855522,1779527446000,-982.0,0.00011781,2]
[422855521,1779527446000,-982.0,0.00011781,2]
[422855516,1779527446000,-982.0,0.00011781,2]
[422855526,1779527446000,-150.0,0.00011781,2]
[422855503,1779527446000,-982.0,0.00011781,2]
[422855529,1779527446000,-152.36,0.00011785,2]
[422855533,1779527446000,-874.0,0.00011875,2]
[422855530,1779527446000,-169.94,0.00011802,2]
[422855531,1779527446000,-250.0,0.0001181,2]
[422855535,1779527446000,-3292.0,0.00011896,2]
[422855536,1779527446000,-326.53352212,0.000119,2]
[422855515,1779527446000,-982.0,0.00011781,2]
[422855511,1779527446000,-982.0,0.00011781,2]
[422855499,1779527446000,-3500.82,0.00011758,2]
[422855510,1779527446000,-982.0,0.00011781,2]
[422855538,1779527446000,-1000.0,0.00011999,2]
[422855480,1779527446000,-150.0,0.00010959,2]
[422855482,1779527446000,-166.19,0.00010964,2]
[422855479,1779527446000,-151.93,0.0001094,2]
[422855483,1779527446000,-152.0,0.00011,5]
[422855481,1779527446000,-150.0,0.00010959,2]
[422855485,1779527446000,-779.81306551,0.00011099,2]
[422855484,1779527446000,-500.0,0.00011034,2]
[422855486,1779527446000,-779.81306547,0.00011099,2]
[422855496,1779527446000,-779.81306547,0.00011566,2]
[422855497,1779527446000,-1147.02312844,0.00011566,2]
[422855493,1779527446000,-500.0,0.00011174,2]
[422855498,1779527446000,-151.93,0.00011624,2]
[422855490,1779527446000,-1147.02312844,0.00011099,2]
[422855487,1779527446000,-779.81306547,0.00011099,2]
[422855492,1779527446000,-1147.02312844,0.00011099,2]
[422855494,1779527446000,-2000.0,0.00011353,2]
[422855488,1779527446000,-779.81306547,0.00011099,2]
[422855489,1779527446000,-1147.02312847,0.00011099,2]
[422855495,1779527446000,-500.0,0.00011448,2]
[422855491,1779527446000,-1147.02312844,0.00011099,2]
[422855500,1779527446000,-446.65,0.00011772,2]
[422855509,1779527446000,-982.0,0.00011781,2]
[422855504,1779527446000,-982.0,0.00011781,2]
[422855506,1779527446000,-982.0,0.00011781,2]
[422855501,1779527446000,-982.0,0.00011781,2]
[422855537,1779527446000,-177.97,0.00011947,2]
[422855540,1779527446000,-1084.77,0.0001205,2]
[422855532,1779527446000,-200.0,0.00011838,2]
[422855579,1779527446000,-1152.0,0.00013086,2]
[422855576,1779527446000,-3500.82,0.00012934,2]
[422855566,1779527446000,-150.0,0.00012666,2]
[422855578,1779527446000,-500.0,0.00013082,2]
[422855577,1779527446000,-169.94,0.00012982,2]
[422855580,1779527446000,-1215.0,0.00013086,2]
[422855573,1779527446000,-2000.0,0.00012772,2]
[422855575,1779527446000,-1147.02312844,0.000129,2]
[422855574,1779527446000,-779.81306547,0.000129,2]
[422855583,1779527446000,-150.0,0.00013315,2]
[422855587,1779527446000,-1147.02312844,0.00013566,2]
[422855589,1779527446000,-500.0,0.00013698,2]
[422855571,1779527446000,-1008.0,0.00012732,5]
[422855527,1779527446000,-150.0,0.00011781,2]
[422855582,1779527446000,-150.0,0.00013315,2]
[422855591,1779527446000,-500.0,0.00013698,2]
[422855581,1779527446000,-446.65,0.00013244,2]
[422855588,1779527446000,-500.0,0.00013698,2]
[422855592,1779527446000,-500.0,0.00013698,2]
[422855585,1779527446000,-500.0,0.00013507,2]
[422855590,1779527446000,-500.0,0.00013698,2]
[422855593,1779527446000,-287.29819847,0.00013698,2]
[422855594,1779527446000,-500.0,0.00013698,2]
[422855596,1779527446000,-500.0,0.00013698,2]
[422855595,1779527446000,-251.89775454,0.00013698,2]
[422855597,1779527446000,-500.0,0.00013698,2]
[422855586,1779527446000,-779.81306547,0.00013566,2]
[422855568,1779527446000,-150.0,0.00012666,2]
[422855584,1779527446000,-150.0,0.00013315,2]
[422855562,1779527446000,-500.0,0.00012366,2]
[422855534,1779527446000,-823.0,0.00011896,2]
[422855569,1779527446000,-208.78535381,0.0001269,2]
[422855541,1779527446000,-3500.82,0.00012052,2]
[422855539,1779527446000,-501.0,0.00012027,2]
[422855542,1779527446000,-3546.0,0.00012184,2]
[422855545,1779527446000,-927.0,0.00012184,2]
[422855543,1779527446000,-627.898,0.00012184,2]
[422855544,1779527446000,-1355.0,0.00012184,2]
[422855549,1779527446000,-418.0,0.0001219,2]
[422855547,1779527446000,-3635.0,0.00012189,2]
[422855546,1779527446000,-1224.0,0.00012189,2]
[422855551,1779527446000,-1147.02312844,0.00012233,2]
[422855548,1779527446000,-6060.0,0.00012189,2]
[422855552,1779527446000,-151.93,0.00012308,2]
[422855553,1779527446000,-389.15,0.00012329,2]
[422855556,1779527446000,-500.0,0.00012366,2]
[422855554,1779527446000,-576.29,0.00012329,2]
[422855563,1779527446000,-537.31096175,0.00012366,2]
[422855557,1779527446000,-150.0,0.00012366,2]
[422855560,1779527446000,-500.0,0.00012366,2]
[422855564,1779527446000,-3500.82,0.0001264,2]
[422855555,1779527446000,-3500.82,0.00012346,2]
[422855558,1779527446000,-150.0,0.00012366,2]
[422855559,1779527446000,-500.0,0.00012366,2]
[422855561,1779527446000,-154.42738782,0.00012366,2]
[422855550,1779527446000,-779.81306547,0.00012233,2]
[422855613,1779527447000,-387.48948996,0.00013698,2]
[422855626,1779527447000,-250.0,0.00014,2]
[422855617,1779527447000,-2000.0,0.00013699,7]
[422855624,1779527447000,-635.23,0.00014,2]
[422855616,1779527447000,-166.66,0.00013699,2]
[422855615,1779527447000,-200.0,0.00013699,2]
[422855623,1779527447000,-635.23,0.00014,2]
[422855618,1779527447000,-351.35444926,0.00013741,2]
[422855619,1779527447000,-166.66,0.00013836,2]
[422855622,1779527447000,-635.23,0.00014,2]
[422855621,1779527447000,-635.23,0.00014,2]
[422855625,1779527447000,-635.23,0.00014,2]
[422855620,1779527447000,-166.66,0.00013973,2]
[422855614,1779527447000,-424.68531923,0.00013698,2]
[422855600,1779527447000,-500.0,0.00013698,2]
[422855609,1779527447000,-500.0,0.00013698,2]
[422855611,1779527447000,-202.1844103,0.00013698,2]
[422855604,1779527447000,-554.06567151,0.00013698,2]
[422855607,1779527447000,-500.0,0.00013698,2]
[422855610,1779527447000,-500.0,0.00013698,2]
[422855605,1779527447000,-500.0,0.00013698,2]
[422855603,1779527447000,-500.0,0.00013698,2]
[422855608,1779527447000,-500.0,0.00013698,2]
[422855612,1779527447000,-500.0,0.00013698,2]
[422855601,1779527447000,-500.0,0.00013698,2]
[422855602,1779527447000,-500.0,0.00013698,2]
[422855599,1779527447000,-500.0,0.00013698,2]
[422855598,1779527447000,-500.0,0.00013698,2]
[422855636,1779527447000,-779.81306547,0.00014233,2]
[422855606,1779527447000,-500.0,0.00013698,2]
[422855627,1779527447000,-894.15,0.00014,2]
[422855656,1779527447000,-1265.0,0.00014753,5]
[422855632,1779527447000,-2000.0,0.00014,2]
[422855628,1779527447000,-894.15,0.00014,2]
[422855660,1779527447000,-3269.05551518,0.000148,2]
[422855659,1779527447000,-1783.98086891,0.000148,2]
[422855658,1779527447000,-1483.55420824,0.000109,2]
[422855655,1779527447000,-380.0,0.00014702,2]
[422855654,1779527447000,-163.0,0.00014702,2]
[422855657,1779527447000,-44300.46732172,0.000148,2]
[422855653,1779527447000,-239.0,0.00014702,2]
[422855649,1779527447000,-800.0,0.000147,5]
[422855645,1779527447000,-4200.0,0.000146,5]
[422855641,1779527447000,-3300.0,0.000145,5]
[422855643,1779527447000,-241.80677,0.0001452,2]
[422855648,1779527447000,-1008.42242646,0.000147,2]
[422855642,1779527447000,-4100.0,0.000145,5]
[422855647,1779527447000,-800.0,0.00014652,5]
[422855644,1779527447000,-2000.0,0.00014599,7]
[422855635,1779527447000,-2000.0,0.00014191,2]
[422855646,1779527447000,-5100.0,0.000146,5]
[422855629,1779527447000,-894.15,0.00014,2]
[422855630,1779527447000,-894.15,0.00014,2]
[422855633,1779527447000,-166.66,0.0001411,2]
[422855634,1779527447000,-169.94,0.00014163,2]
[422855638,1779527447000,-166.66,0.00014247,2]
[422855631,1779527447000,-894.15,0.00014,2]
[422855640,1779527447000,-1613.0,0.00014395,2]
[422855639,1779527447000,-166.66,0.00014384,2]
[422855650,1779527447000,-1000.0,0.000147,5]
[422855651,1779527447000,-1949.8909383,0.000147,2]
[422855652,1779527447000,-262.0789949,0.000147,2]
[422855637,1779527447000,-1147.02312844,0.00014233,2]
[422855668,1779527449000,-208.78535381,0.00012698,2]
[422855667,1779527449000,-215.31523495,0.00012698,2]
[422855670,1779527449000,-1600.0,0.00014452,2]
[422855669,1779527449000,-1600.0,0.00013082,2]
[422855671,1779527449000,-896.81107864,0.000148,2]
[422855673,1779527449000,-7468.09006081,0.000148,2]
[422855674,1779527449000,-11837.70379702,0.000148,2]
[422855675,1779527449000,-10529.8697,0.000148,2]
[422855676,1779527449000,-438.62506687,0.000148,2]
[422855672,1779527449000,-1133.41411213,0.000148,2]
[422855677,1779527450000,-290.0,0.000147,2]
[422855678,1779527450000,-382.28161764,0.000147,2]
[422855679,1779527450000,-418.60608218,0.000148,2]
[422855682,1779527450000,-1780.9345084,0.000148,2]
[422855681,1779527450000,-5701.90947037,0.000148,2]
[422855680,1779527450000,-968.38065445,0.000148,2]
[422855685,1779527450000,-1554.38999996,0.000148,2]
[422855684,1779527450000,-1647.46000004,0.000148,2]
[422855691,1779527456000,152.0,9.411e-05,7]
[422855695,1779527786000,-1080.296,8.663e-05,2]
[422855696,1779527840000,-265.45566261,8.839e-05,2]
[422855697,1779527893000,-300.0,8.838e-05,2]
[422855698,1779527947000,-150.0,8.838e-05,2]
[422855699,1779528000000,-5000.0,8.839e-05,2]
[422855700,1779528053000,-278.57022146,8.839e-05,2]
[422855701,1779528107000,-300.0,8.838e-05,2]
[422855702,1779528161000,-300.0,8.838e-05,2]
[422855703,1779528213000,-300.0,8.838e-05,2]
[422855704,1779528267000,-864.237,8.663e-05,2]
[422855707,1779528434000,400.0,8.9e-05,3]
[422855708,1779528436000,800.0,9e-05,3]
[422855709,1779528540000,1000.0,0.0002808,120]
[422855710,1779528616000,-213.79086882,8.81e-05,2]
[422855733,1779528631000,-5352.0,0.00010159,2]
[422855725,1779528631000,-160.0,8.917e-05,2]
[422855728,1779528631000,-250.0,9.691e-05,2]
[422855727,1779528631000,-2000.0,9.136e-05,2]
[422855731,1779528631000,-4715.0,9.988e-05,2]
[422855730,1779528631000,-7515.08311753,9.868e-05,2]
[422855729,1779528631000,-420.0,9.722e-05,2]
[422855726,1779528631000,-215.31523495,9.016e-05,2]
[422855732,1779528631000,-167.62259214,0.0001,2]
[422855717,1779528631000,-747003.23710861,8.739e-05,2]
[422855723,1779528631000,-209.04079427,8.85e-05,2]
[422855724,1779528631000,-208.78535381,8.883e-05,2]
[422855721,1779528631000,-940.18848869,8.839e-05,2]
[422855722,1779528631000,-209.04079427,8.839e-05,2]
[422855720,1779528631000,-300.0,8.838e-05,2]
[422855719,1779528631000,-21940.32662774,8.739e-05,2]
[422855718,1779528631000,-101557.75058035,8.739e-05,2]
[422855716,1779528631000,-719.62920142,8.739e-05,2]
[422855715,1779528631000,-4830.29088188,8.739e-05,2]
[422855735,1779528631000,-170.0,0.00010253,2]
[422855734,1779528631000,-18459.0,0.0001018,2]
[422855746,1779528631000,-236.30169116,0.00011339,2]
[422855761,1779528631000,-500.0,0.00012092,2]
[422855738,1779528631000,-3151.0,0.00010405,2]
[422855747,1779528631000,-1112.66565618,0.00011386,2]
[422855757,1779528631000,-500.0,0.00012092,2]
[422855756,1779528631000,-161.25758978,0.00011998,3]
[422855753,1779528631000,-281.94,0.00011822,2]
[422855751,1779528631000,-209.4,0.00011684,2]
[422855755,1779528631000,-312.23,0.00011896,2]
[422855758,1779528631000,-500.0,0.00012092,2]
[422855752,1779528631000,-170.43895318,0.00011781,2]
[422855750,1779528631000,-250.0,0.00011641,2]
[422855759,1779528631000,-262.52138871,0.00012092,2]
[422855754,1779528631000,-163.86044692,0.00011825,2]
[422855749,1779528631000,-150.0,0.00011627,2]
[422855748,1779528631000,-2000.0,0.00011421,2]
[422855740,1779528631000,-1112.66565618,0.000109,2]
[422855736,1779528631000,-2000.0,0.00010279,2]
[422855741,1779528631000,-1112.66565618,0.000109,2]
[422855739,1779528631000,-1112.66565618,0.000109,2]
[422855743,1779528631000,-163.86044692,0.00011099,2]
[422855742,1779528631000,-152.0,0.00011,5]
[422855745,1779528631000,-163.86044692,0.00011099,2]
[422855744,1779528631000,-163.86044692,0.00011099,2]
[422855737,1779528631000,-12694.02474169,0.000103,2]
[422855783,1779528632000,-500.0,0.00013356,2]
[422855770,1779528632000,-2000.0,0.00012563,2]
[422855778,1779528632000,-625.0,0.00012776,2]
[422855776,1779528632000,-1271.0,0.00012776,2]
[422855777,1779528632000,-1224.0,0.00012776,2]
[422855773,1779528632000,-191.35,0.00012733,2]
[422855768,1779528632000,-324.29,0.00012329,2]
[422855775,1779528632000,-1911.33,0.00012753,2]
[422855766,1779528632000,-150.0,0.00012092,2]
[422855772,1779528632000,-200.0,0.00012638,2]
[422855769,1779528632000,-210.59,0.00012335,2]
[422855764,1779528632000,-546.87457237,0.00012092,2]
[422855767,1779528632000,-1112.66565618,0.00012264,2]
[422855762,1779528632000,-500.0,0.00012092,2]
[422855765,1779528632000,-417.28066252,0.00012092,2]
[422855780,1779528632000,-191.35,0.00013052,2]
[422855763,1779528632000,-500.0,0.00012092,2]
[422855779,1779528632000,-163.86044692,0.0001285,2]
[422855793,1779528632000,-200.0,0.00013699,2]
[422855786,1779528632000,-312.23,0.00013383,2]
[422855800,1779528632000,-385.37598275,0.00012776,2]
[422855799,1779528632000,-418.28541298,0.00012776,2]
[422855795,1779528632000,-2000.0,0.00013705,2]
[422855796,1779528632000,-3039.5636322,0.00013791,2]
[422855797,1779528632000,-36054.14048208,0.00013791,2]
[422855791,1779528632000,-500.0,0.00013698,2]
[422855792,1779528632000,-500.0,0.00013698,2]
[422855781,1779528632000,-800.0,0.00013082,2]
[422855794,1779528632000,-166.66,0.00013699,2]
[422855789,1779528632000,-500.0,0.00013698,2]
[422855798,1779528632000,-3567.34954944,0.00013791,2]
[422855787,1779528632000,-191.35,0.00013688,2]
[422855788,1779528632000,-500.0,0.00013698,2]
[422855782,1779528632000,-1112.66565618,0.00013143,2]
[422855785,1779528632000,-191.35,0.0001337,2]
[422855784,1779528632000,-1400.0,0.00013356,2]
[422855790,1779528632000,-500.0,0.00013698,2]
[422855816,1779528640000,-30093.99196174,0.00013791,2]
[422855814,1779528640000,-551.33860427,0.00012776,2]
[422855817,1779528640000,-14013.67119661,0.00013791,2]
[422855818,1779528640000,-5341.57111255,0.00013791,2]
[422855815,1779528640000,-46098.63260061,0.00013791,2]
[422855819,1779528640000,-300.00158029,0.00013791,2]
[422855829,1779528643000,-85.0,0.00012092,2]
[422855828,1779528643000,-500.0,0.00012092,2]
[422855882,1779528645000,-88.32547042,0.00012092,2]
[422855879,1779528645000,-153.50299616,0.00012092,2]
[422855881,1779528645000,-442.96286618,0.00012092,2]
[422855880,1779528645000,-57.03713382,0.00012092,2]
[422855878,1779528645000,-415.0,0.00012092,2]
[422855883,1779528646000,-305.22,0.00012092,2]
[422855929,1779528667000,10000.0,0.00028082,120]
[422855930,1779528677000,5590.73,0.00028082,120]
[422855934,1779528974000,-494.34309822,8.737e-05,2]
[422855935,1779528994000,-248.65690178,8.737e-05,2]
[422855936,1779529004000,1500.00000085,0.00028082,120]
[422855937,1779529048000,-150.0,8.737e-05,2]
[422855938,1779529101000,-500.0,8.738e-05,2]
[422855939,1779529114000,166.41,5.92e-05,2]
[422855940,1779529155000,-150.0,8.737e-05,2]
[422855941,1779529208000,-500.0,8.738e-05,2]
[422855943,1779529261000,-2501.32669805,8.738e-05,2]
[422855944,1779529315000,-185.81896382,8.738e-05,2]
[422855945,1779529368000,-150.0,8.737e-05,2]
[422855946,1779529389000,290.55978742,0.00010364,21]
[422855947,1779529422000,-691.39,8.564e-05,2]
[422855948,1779529567000,179.70407958,0.00010283,21]
[422855949,1779529586000,152.0,9.417e-05,7]
[422855950,1779529644000,800.0,8.9e-05,3]
[422855951,1779529646000,1700.0,9e-05,3]
[422855952,1779529740000,1000.0,0.00028081,120]
[422855953,1779529788000,-500.0,8.638e-05,2]
[422856433,1779529841000,-300.0,8.737e-05,2]
[422856434,1779529841000,-363.22867442,8.737e-05,2]
[422856435,1779529841000,-836.77132558,8.737e-05,2]
[422856436,1779529841000,-58.63867442,8.738e-05,2]
[422856437,1779529841000,-441.36132558,8.738e-05,2]
[422856438,1779529841000,-500.0,8.738e-05,2]
[422856442,1779529841000,-500.0,8.738e-05,2]
[422856443,1779529841000,-645.84925471,8.738e-05,2]
[422856439,1779529841000,-194.99915502,8.738e-05,2]
[422856441,1779529841000,-500.0,8.738e-05,2]
[422856444,1779529841000,-616.77326833,8.738e-05,2]